Cogmind - Beta 10.1 @@@ ROGUE MODE // 2020.10.04 @ 20:06:47 Player: gorlork Result: Destroyed by G-47 Trooper with Particle Gun Performance ------------- Evolutions (1) 500 Regions Visited (3) 600 Robots Destroyed (35) 175 Value Destroyed (676) 676 Prototype IDs (3) 60 Alien Tech Used (0) 0 Bonus (0) 0 TOTAL SCORE: 2011 Bonus ------- None Cogmind --------- Core Integrity 0/400 Matter 283/300 Energy 279/280 System Corruption 3% Temperature Cool (15) Movement Treading (160) Location -9/Mines Parts ------- > --- POWER (1) -------- Cooled Ion Engine > --- PROPULSION (3) --- Light Treads Light Treads > --- UTILITY (3) ------ Signal Interpreter Weapon Shielding Light Armor Plating > --- WEAPON (2) ------- Autogun Katana > --- INVENTORY (4) ---- Visual Processing Unit Peak State ------------ > --- POWER ------------ Cooled Ion Engine > --- PROPULSION ------- Light Treads Light Treads Light Treads > --- UTILITY ---------- Signal Interpreter Transport Network Coupler Weapon Shielding > --- WEAPON ----------- Improved EM Shotgun Advanced Beam Cannon > --- INVENTORY -------- Cooled Ion Engine Light Armor Plating Particle Gun Mining Claw [Rating: 15] Favorites ----------- Power Cooled Ion Engine Engine Cooled Ion Engine Propulsion Light Treads Treads Light Treads Wheel Compact Wheel Utility Signal Interpreter Processor Signal Interpreter Protection Light Armor Plating Weapon Autogun Energy Gun Improved EM Shotgun Energy Cannon Advanced Beam Cannon Ballistic Gun Autogun Slashing Weapon Mining Claw Build | -11 -10 -9 -9 ------- Run | Scr Mat Mat Min Slots Evolved 2 | . . 2 . Power . | . . . . Propulsion 1 | . . 1 . Utility 1 | . . 1 . Weapon . | . . . . Parts Attached 28 | 5 5 18 . Power 3 | 1 . 2 . Engine 3 | 1 . 2 . Core . | . . . . Reactor . | . . . . Propulsion 7 | 2 . 5 . Treads 5 | 2 . 3 . Leg . | . . . . Wheel 2 | . . 2 . Hover . | . . . . Flight . | . . . . Utility 7 | . 3 4 . Device . | . . . . Storage . | . . . . Processor 2 | . 1 1 . Hackware . | . . . . Protection 5 | . 2 3 . Artifact . | . . . . Weapon 11 | 2 2 7 . Energy Gun 1 | . . 1 . Energy Cannon 1 | . . 1 . Ballistic Gun 7 | 2 1 4 . Ballistic Cannon . | . . . . Launcher . | . . . . Special Weapon . | . . . . Impact Weapon . | . . . . Slashing Weapon 2 | . 1 1 . Piercing Weapon . | . . . . Special Melee Weapon . | . . . . Unidentified Prototypes 3 | . . 3 . Parts Lost 7 | . . 7 . Power 1 | . . 1 . Propulsion 3 | . . 3 . Utility 2 | . . 2 . Weapon 1 | . . 1 . Highest Loss Streak 5 | . . 5 . Average Slot Usage (%) 85 | . 89 83 88 Engine 9 | . 14 8 11 Treads 23 | . 28 22 22 Wheel 2 | . . 3 . Processor 14 | . 5 17 11 Protection 11 | . 12 11 22 Ballistic Gun 16 | . 21 15 11 Slashing Weapon 5 | . 6 4 11 Naked Turns . | . . . . Heaviest Build 18 | 7 14 18 . Greatest Support 60 | 40 40 60 . Greatest Overweight (x) 1 | . . 1 . Average Overweight (x) . | . . . . Largest Inventory Capacity 4 | 4 4 4 4 Average Capacity 4 | 4 4 4 4 Most Carried 4 | 2 3 4 1 Average Carried 2 | . . 3 1 Final Capacity 4 | 4 4 4 4 Final Carried 2 | . 2 1 1 Class Distribution -------------------- 50% | Mutant 50% | Scavenger-Mutant Dominant Class ---------------- Mutant | -10/Materials Scavenger-Mutant | -9/Materials Scavenger-Mutant | -9/Mines Resources | -11 -10 -9 -9 ----------- Run | Scr Mat Mat Min Matter Collected 861 | 236 108 517 . Remotely . | . . . . Salvage Created 1319 | . 264 1055 . Parts 69 | . 14 55 . Haulers Intercepted 3 | . . 3 . Recyclers Shooed . | . . . . Parts Field Recycled . | . . . . Retrieved Matter . | . . . . Parts Self-Destructed . | . . . . Prevented . | . . . . Kills | -11 -10 -9 -9 ------- Run | Scr Mat Mat Min Combat Hostiles Destroyed 19 | . 5 14 . Melee 2 | . . 2 . Guns 17 | . 5 12 . Classes Destroyed 8 | . 3 5 . Worker 3 | . . 3 . Hauler 3 | . . 3 . Recycler 4 | . 2 2 . Watcher 6 | . 1 5 . Swarmer 7 | . 5 2 . Grunt 8 | . . 8 . Duelist 1 | . . 1 . Sentry 3 | . . 3 . Best Kill Streak 5 | . 5 5 . Combat Bots Only 4 | . 4 4 . Max Kills in Single Turn 2 | . 1 2 . Gunslinging 1 | . . 1 . Exploded . | . . . . Melee 1 | . . 1 . Uniques/NPCs Destroyed . | . . . . Combat | -11 -10 -9 -9 -------- Run | Scr Mat Mat Min Damage Taken 1959 | . 340 1548 71 Core 445 | . 45 384 16 Absorbed by Shields . | . . . . Core Remaining (%) 91 | 100 82 . . Volleys Fired 70 | . 22 45 3 Largest 2 | . 2 2 1 Hottest 46 | . 40 46 23 Shots Fired 134 | . 44 87 3 Gun 134 | . 44 87 3 Cannon . | . . . . Launcher . | . . . . Special . | . . . . Kinetic 134 | . 44 87 3 Thermal . | . . . . Explosive . | . . . . Electromagnetic . | . . . . Robot Hit Streak 16 | . 6 16 7 Robot Miss Streak 3 | . 3 2 1 Penetration Max . | . . . . Secondary Targets 3 | . 2 1 . Max Gunslinging Chain 1 | . 1 1 . Shots Hit Robots 113 | . 27 84 2 Core Hits 51 | . 13 37 1 Critical Hits 3 | . . 3 . Critical Kills 1 | . . 1 . Critical Parts Destroyed 2 | . . 2 . Melee Attacks 40 | . 2 38 . Impact . | . . . . Slashing 40 | . 2 38 . Piercing . | . . . . Sneak Attacks 7 | . 1 6 . Combat Hostiles . | . . . . Follow-up Attacks . | . . . . Damage Inflicted 2039 | . 288 1726 25 Guns 1146 | . 197 924 25 Cannons . | . . . . Explosions . | . . . . Melee 893 | . 91 802 . Ramming . | . . . . Kinetic 1146 | . 197 924 25 Thermal . | . . . . Explosive . | . . . . Electromagnetic . | . . . . Impact . | . . . . Slashing 893 | . 91 802 . Piercing . | . . . . Highest Corruption 3 | . . 3 3 Average Corruption 3 | . . 3 3 Corruption Purged . | . . . . Effects 5 | . . 5 . Message Errors 1 | . . 1 . Matter Fused 2 | . . 2 . Heat Flow Errors 1 | . . 1 . Data Loss (minor) 1 | . . 1 . Overload Shots . | . . . . Overflow Damage 78 | . . 78 . Projectiles . | . . . . Explosions . | . . . . Melee 78 | . . 78 . Knockbacks . | . . . . Impact . | . . . . Kinetic . | . . . . Secondary . | . . . . Self-Inflicted Damage . | . . . . Shots . | . . . . Rammed . | . . . . Targets Rammed . | . . . . Kicked . | . . . . Crushed . | . . . . Highest Temperature 144 | . . 144 16 Average Temperature 27 | . . 27 8 Received Heat Transfer 768 | . . 729 39 Siege Activations . | . . . . Robots Corrupted . | . . . . Combat Hostiles . | . . . . Parts Fried . | . . . . Impact Corruptions . | . . . . Robots Melted . | . . . . Combat Hostiles . | . . . . Parts Melted . | . . . . Heat Transferred . | . . . . Parts Sabotaged . | . . . . Parts Stolen . | . . . . Parts Stripped . | . . . . Power Chain Reactions . | . . . . Missiles Intercepted . | . . . . Alert | -11 -10 -9 -9 ------- Run | Scr Mat Mat Min Peak Influence 235 | . 151 235 91 Initial 91 | . . 63 91 Average 96 | . 103 100 91 Maximum Alert Level 1 | . . 1 . Low Security (%) 95 | 100 100 92 100 Level 1 4 | . . 7 . Level 2 . | . . . . Level 3 . | . . . . Level 4 . | . . . . Level 5 . | . . . . High Security . | . . . . Max Security . | . . . . Squads Dispatched 1 | . . 1 . Investigation . | . . . . Extermination . | . . . . Reinforcement 1 | . . 1 . Assault . | . . . . Garrison . | . . . . Intercept . | . . . . Construction Impeded . | . . . . Haulers Reinforced . | . . . . Stealth | -11 -10 -9 -9 --------- Run | Scr Mat Mat Min Distress Signals 1 | . . 1 . Communications Jammed . | . . . . Distress Signals . | . . . . Times Spotted 36 | . 8 26 2 Peak Tracking Total 5 | . 4 5 2 Tactical Retreats 5 | . 1 4 . Traps | -11 -10 -9 -9 ------- Run | Scr Mat Mat Min Traps Triggered 1 | . 1 . . Indirectly . | . . . . Trap Hack Attempts . | . . . . Triggered . | . . . . Disarmed . | . . . . Reprogrammed . | . . . . Reused . | . . . . Traps Extracted . | . . . . Installed . | . . . . Triggered . | . . . . Machines | -11 -10 -9 -9 ---------- Run | Scr Mat Mat Min Machines Disabled 2 | . . 2 . Max in Single Turn 1 | . . 1 . Machines Sabotaged . | . . . . Garrisons Compromised . | . . . . Overloaded Fab Kills . | . . . . Fab Network Shutdowns . | . . . . Hacking | -11 -10 -9 -9 --------- Run | Scr Mat Mat Min Machines Accessed 4 | . 2 2 . Terminals 3 | . 2 1 . Fabricators . | . . . . Repair Stations . | . . . . Recycling Units . | . . . . Scanalyzers 1 | . . 1 . Garrison Access . | . . . . Total Hacks 14 | . 3 11 . Successful 12 | . 2 10 . Failed 2 | . 1 1 . Catastrophic . | . . . . Database Lockouts . | . . . . Manual . | . . . . Terminals 6 | . 3 3 . Fabricators . | . . . . Repair Stations . | . . . . Recycling Units . | . . . . Scanalyzers 8 | . . 8 . Garrison Access . | . . . . Terminal Hacks 4 | . 2 2 . Record 2 | . 1 1 . Branch Access Points 2 | . 1 1 . Fabricator Hacks . | . . . . Repair Station Hacks . | . . . . Recycling Unit Hacks . | . . . . Scanalyzer 8 | . . 8 . Insert Component 4 | . . 4 . Analyze 4 | . . 4 . Garrison Access Hacks . | . . . . Unauthorized Hacks . | . . . . Terminals . | . . . . Fabricators . | . . . . Repair Stations . | . . . . Recycling Units . | . . . . Scanalyzers . | . . . . Garrison Access . | . . . . Data Cores Recovered . | . . . . Used . | . . . . Hacking Detections 1 | . 1 . . Full Trace Events . | . . . . Feedback Events . | . . . . Feedback Blocked . | . . . . Robot Schematics Acquired . | . . . . Robots Built . | . . . . Matter . | . . . . Time . | . . . . Total Robot Build Rating . | . . . . Part Schematics Acquired 4 | . . 4 . Parts Built . | . . . . Matter . | . . . . Time . | . . . . Total Part Build Rating . | . . . . Parts Repaired . | . . . . Time . | . . . . Parts Recycled . | . . . . Recycled Matter . | . . . . Retrieved Matter . | . . . . Retrieved Components . | . . . . Parts Scanalyzed 4 | . . 4 . Part Schematics Acquired 4 | . . 4 . Parts Damaged . | . . . . Bothacking | -11 -10 -9 -9 ------------ Run | Scr Mat Mat Min Used RIF Installer . | . . . . Robots Hacked . | . . . . Non-combat . | . . . . Combat . | . . . . Robot Hacks Applied . | . . . . Relay Couplers Released . | . . . . Robots Rewired . | . . . . Allies Hacked . | . . . . Hacks Repelled . | . . . . Allies | -11 -10 -9 -9 -------- Run | Scr Mat Mat Min Total Allies . | . . . . Largest Group . | . . . . Highest-Rated Group . | . . . . Highest-Rated Ally . | . . . . Total Orders . | . . . . Ally Attacks . | . . . . Total Damage . | . . . . Kills . | . . . . Allies Corrupted . | . . . . Allies Melted . | . . . . Intel | -11 -10 -9 -9 ------- Run | Scr Mat Mat Min Robot Analysis Total . | . . . . Derelict Logs Recovered . | . . . . Drone Launches . | . . . . Drone Recoveries . | . . . . Exploration | -11 -10 -9 -9 ------------- Run | Scr Mat Mat Min Turns Passed 1422 | 67 353 998 4 Spaces Moved 700 | 41 171 488 . Core 24 | 7 . 17 . Treads 580 | 34 171 375 . Legs . | . . . . Wheels 96 | . . 96 . Hover . | . . . . Flight . | . . . . Fastest Speed 50 | 50 160 100 . Average Speed 149 | 141 160 146 . Slowest Speed 160 | 160 160 160 . Overloaded Moves . | . . . . Propulsion Burnouts . | . . . . Robots Hopped . | . . . . Cave-ins Triggered . | . . . . Exploration Rate (%) 21 | 5 37 40 3 Regions Visited 3 Branch Regions 1 Pre-discovered Areas . | . . . . Known Exits Taken 2 | . 1 1 . Unknown Exits Taken 1 | 1 . . . Scrap Searched . | . . . . Spaces Dug . | . . . . Terrain Destroyed . | . . . . Melee . | . . . . Projectile . | . . . . AOE . | . . . . Terrain Rammed . | . . . . Walls Destroyed . | . . . . Machines Disabled . | . . . . Actions | -11 -10 -9 -9 --------- Run | Scr Mat Mat Min Total 893 | 50 211 629 3 Wait 22 | . 4 18 . Move 697 | 40 170 487 . Hop . | . . . . Pick Up 22 | 5 6 11 . Fast Attach 7 | . . 7 . Attach 15 | 5 2 8 . Detach . | . . . . Swap 6 | . 3 3 . Drop 14 | . 2 12 . Fire 70 | . 22 45 3 Melee 40 | . 2 38 . Ram . | . . . . Kick . | . . . . Crush . | . . . . Escape Stasis . | . . . . Rewire . | . . . . Trap . | . . . . Miscellaneous . | . . . . Route ------- -11/Scrapyard -10/Materials (discovered 2 exits: *Mat / Min) -9/Materials -9/Mines History --------- Turn | Location | Event 14 | -11/Scrapyard | Discovered new exit (range 15) 68 | -11/Scrapyard | Entered Materials 301 | -10/Materials | Build established: Mutant 347 | -10/Materials | Discovered new exit (range 4) 353 | -10/Materials | Identified exit to Materials 400 | -10/Materials | Identified exit to Mines 421 | -10/Materials | Entered another Materials area 421 | -9/Materials | Evolved 2 slots: Propulsion x1, Utility x1 581 | -9/Materials | Core integrity fell below 50% 591 | -9/Materials | Lost 5 parts (1p2n1u1w) 1024 | -9/Materials | Build established: Scavenger-Mutant 1240 | -9/Materials | Discovered new exit (range 7) 1265 | -9/Materials | Identified exit to Mines 1324 | -9/Materials | Core integrity fell below 20% 1419 | -9/Materials | Entered Mines 1423 | -9/Mines | Destroyed by G-47 Trooper with Particle Gun Last Messages --------------- 01340_ Acquired 49 matter. 01344_ G-34 Mercenary destroyed. 01355_ K-01 Serf collects debris. 01357_ Acquired Katana. 01358_ Dropped Mining Claw. 01358_ Dropped Autogun. 01359_ K-01 Serf collects debris. 01361_ Dropped Cld. Ion Engine. 01362_ K-01 Serf collects debris. 01374_ R-06 Scavenger collects Lgt. Ion Engine. 01376_ Acquired 115 matter. 01377_ K-01 Serf collects debris. 01389_ Acquired 16 matter. 01394_ Acquired 14 matter. 01394_ K-01 Serf collects debris. 01397_ K-01 Serf cleans the Terminal. 01402_ System corrupted: Matter fused (-5). LOCATION=MINES GOAL=ESCAPE Something is scanning the area. Map ----- +----------------------------------------------------+ | | | | | | | | | | | | | | | | | | | | | | | | | | | | | | | | | | | | | | | ????????????????????????????????????????? | | ?????????????###????????????????????????? | | ????????????## #???????????????????????? | | ????????????# #??????????????????????? | | ????????????# ##?????????????????????? | | ????????????# ### #???????????????? | | ????????????# @ g #??????????????? | | ????????????## g #?????????????? | | ?????????????###### #?????????????? | | ????????????????????## ??????????? | | ???????????????????????? ?????????? | | ??????????????????????????####??????????? | | ????????????????????????????????????????? | | ????????????????????????????????????????? | | ????????????????????????????????????????? | | ????????????????????????????????????????? | | ????????????????????????????????????????? | | ????????????????????????????????????????? | | ????????????????????????????????????????? | | ????????????????????????????????????????? | | ????????????????????????????????????????? | | ????????????????????????????????????????? | | ????????????????????????????????????????? | | ????????????????????????????????????????? | | ????????????????????????????????????????? | | ????????????????????????????????????????? | | ????????????????????????????????????????? | | ????????????????????????????????????????? | | ????????????????????????????????????????? | | ????????????????????????????????????????? | | ????????????????????????????????????????? | +----------------------------------------------------+ Best States ------------- Heat Dissipation 28 Energy Generation 14 Energy Capacity 280 Matter Stores 300 Matter Capacity 300 Sight Range 16 Terrain Scan Density 10 Armor Coverage 300 Weapon Shielding 33 Evasion (%) 40 Recoil Reduction 3 Item Schematics ----------------- Mining Claw | -9/Materials | Scanalyzed Cld. Ion Engine | -9/Materials | Scanalyzed Particle Gun | -9/Materials | Scanalyzed Weapon Shielding | -9/Materials | Scanalyzed Robot Schematics ------------------ None Fabricated ------------ Nothing Alien Tech Used ----------------- None Achievements -------------- None Challenges ------------ None Game ------ Seed ProcessingWardroneRifle Manual? 0 Play Time 00:14:23 Cumulative 29.6 hours Start 2020.10.04 @ 19:52:07 End 2020.10.04 @ 20:06:47 Sessions 1 Manual Loads 0 Difficulty Rogue Special Mode None Game No. 55 Rogue 55 Adventurer 0 Explorer 0 Win Type - Total 0 Types 0/0/0/0/0/0/0/0/0 Lore% 34 Gallery% 34 Achievement% 28 Wizard Run 0 Options --------- ASCII 0 Keyboard 0 Movement Mouse Keybinds 0 Fullscreen 1 Font 24/Smallcaps Map View 76x50 Tactical HUD 1 Map Filters NONE Filters NONE Steam 1 RUN: f972d36d-f3b1-46c1-a3c6-f1ef7156905b